[Event "Late-Titled-Tuesday-Blitz-March-05-2024"]
[Site "Chess.com"]
[Date "2024.03.05"]
[Round "9"]
[White "Statham_01"]
[Black "Eeleyah"]
[Result "1-0"]
[WhiteElo "2584"]
[BlackElo "2459"]
[TimeControl "180+1"]
[EndTime "15:40:27 PST"]
[Termination "Statham_01 won by checkmate"]

1. e4 {[%clk 0:02:59.6]} 1... c5 {[%clk 0:02:58.5]} 2. Nf3 {[%clk 0:02:59.3]}
2... Nc6 {[%clk 0:02:57.4]} 3. b4 {[%clk 0:02:58.8]} 3... cxb4 {[%clk
0:02:45.4]} 4. d4 {[%clk 0:02:58.4]} 4... d5 {[%clk 0:02:31.5]} 5. exd5 {[%clk
0:02:59.3]} 5... Qxd5 {[%clk 0:02:32.1]} 6. c4 {[%clk 0:02:58.2]} 6... bxc3
{[%clk 0:02:32.7]} 7. Nxc3 {[%clk 0:02:58.5]} 7... Qa5 {[%clk 0:02:25.1]} 8. Rb1
{[%clk 0:02:58.3]} 8... e6 {[%clk 0:02:16.2]} 9. Bd2 {[%clk 0:02:58.4]} 9... Nf6
{[%clk 0:02:13.5]} 10. Bd3 {[%clk 0:02:47]} 10... Be7 {[%clk 0:02:09.3]} 11. O-O
{[%clk 0:02:45.2]} 11... Qd8 {[%clk 0:01:56.9]} 12. Qe2 {[%clk 0:02:35.7]} 12...
O-O {[%clk 0:01:55.4]} 13. Rfd1 {[%clk 0:02:28]} 13... Nxd4 {[%clk 0:01:41.3]}
14. Nxd4 {[%clk 0:02:28]} 14... Qxd4 {[%clk 0:01:42.2]} 15. Nb5 {[%clk
0:02:25.5]} 15... Qb6 {[%clk 0:01:24]} 16. Be3 {[%clk 0:02:01.8]} 16... Bc5
{[%clk 0:01:07]} 17. Nd4 {[%clk 0:01:46.8]} 17... Qd8 {[%clk 0:00:44.5]} 18.
Nxe6 {[%clk 0:01:37.7]} 18... Bxe6 {[%clk 0:00:41.2]} 19. Bxh7+ {[%clk
0:01:36.1]} 19... Nxh7 {[%clk 0:00:42.1]} 20. Rxd8 {[%clk 0:01:36.5]} 20...
Rfxd8 {[%clk 0:00:38.5]} 21. Bxc5 {[%clk 0:01:36.7]} 21... b6 {[%clk 0:00:37.7]}
22. Be3 {[%clk 0:01:36.7]} 22... Rac8 {[%clk 0:00:34.8]} 23. h3 {[%clk 0:01:36]}
23... Nf8 {[%clk 0:00:33.7]} 24. Re1 {[%clk 0:01:28.8]} 24... Re8 {[%clk
0:00:28]} 25. Qb2 {[%clk 0:01:25.6]} 25... Bc4 {[%clk 0:00:22.2]} 26. Kh2 {[%clk
0:01:24]} 26... Ne6 {[%clk 0:00:22]} 27. a3 {[%clk 0:01:19.2]} 27... Red8 {[%clk
0:00:20.5]} 28. Rc1 {[%clk 0:01:13.6]} 28... Rc6 {[%clk 0:00:15.4]} 29. Qe5
{[%clk 0:01:09]} 29... Rdc8 {[%clk 0:00:12.8]} 30. h4 {[%clk 0:01:06.5]} 30...
a5 {[%clk 0:00:08.6]} 31. h5 {[%clk 0:01:06.1]} 31... Bd3 {[%clk 0:00:08]} 32.
Rd1 {[%clk 0:00:58.4]} 32... Bh7 {[%clk 0:00:06.6]} 33. h6 {[%clk 0:00:55.6]}
33... gxh6 {[%clk 0:00:06.6]} 34. Rd7 {[%clk 0:00:51.7]} 34... Bg6 {[%clk
0:00:06.6]} 35. Re7 {[%clk 0:00:40.9]} 35... Ng7 {[%clk 0:00:06.8]} 36. Bd4
{[%clk 0:00:37.8]} 36... Nf5 {[%clk 0:00:06.1]} 37. Qh8# {[%clk 0:00:37.1]} 1-0

[Event "Late-Titled-Tuesday-Blitz-March-05-2024"]
[Site "Chess.com"]
[Date "2024.03.05"]
[Round "9"]
[White "AlexeiShirov"]
[Black "jlf287"]
[Result "1-0"]
[WhiteElo "2876"]
[BlackElo "2561"]
[TimeControl "180+1"]
[EndTime "15:40:34 PST"]
[Termination "AlexeiShirov won on time"]

1. e4 {[%clk 0:03:00.9]} 1... e5 {[%clk 0:02:59.9]} 2. Nf3 {[%clk 0:03:00]} 2...
Nc6 {[%clk 0:03:00.5]} 3. Bc4 {[%clk 0:02:59.5]} 3... Nf6 {[%clk 0:02:59.8]} 4.
d3 {[%clk 0:02:59.2]} 4... Bc5 {[%clk 0:02:59.6]} 5. Bg5 {[%clk 0:02:58.6]} 5...
h6 {[%clk 0:02:57.9]} 6. Bh4 {[%clk 0:02:58.4]} 6... d6 {[%clk 0:02:55.7]} 7. c3
{[%clk 0:02:56.9]} 7... a6 {[%clk 0:02:56.1]} 8. Nbd2 {[%clk 0:02:33.4]} 8...
Ba7 {[%clk 0:02:56.4]} 9. b4 {[%clk 0:02:31.6]} 9... Qe7 {[%clk 0:02:55.4]} 10.
a4 {[%clk 0:02:24.8]} 10... Nd8 {[%clk 0:02:55.4]} 11. b5 {[%clk 0:02:18.6]}
11... Ne6 {[%clk 0:02:45.1]} 12. bxa6 {[%clk 0:02:13.3]} 12... bxa6 {[%clk
0:02:44.5]} 13. Bd5 {[%clk 0:02:12.3]} 13... Rb8 {[%clk 0:02:39.2]} 14. Bc6+
{[%clk 0:02:11.8]} 14... Kf8 {[%clk 0:02:32.9]} 15. O-O {[%clk 0:01:51.4]} 15...
g5 {[%clk 0:02:18.4]} 16. Bg3 {[%clk 0:01:51.2]} 16... Kg7 {[%clk 0:02:19]} 17.
d4 {[%clk 0:01:47]} 17... Nf4 {[%clk 0:02:15.6]} 18. Nc4 {[%clk 0:01:43.1]}
18... Be6 {[%clk 0:02:02]} 19. Ne3 {[%clk 0:01:40.1]} 19... Ng4 {[%clk
0:01:49.4]} 20. Nxe5 {[%clk 0:01:33.2]} 20... Nxe3 {[%clk 0:01:40]} 21. fxe3
{[%clk 0:01:31.3]} 21... dxe5 {[%clk 0:01:40.2]} 22. exf4 {[%clk 0:01:28.7]}
22... exf4 {[%clk 0:01:39.1]} 23. Bf2 {[%clk 0:01:28.4]} 23... Bc4 {[%clk
0:01:31]} 24. d5 {[%clk 0:01:24.3]} 24... Bxf2+ {[%clk 0:01:19.9]} 25. Rxf2
{[%clk 0:01:23.6]} 25... Qc5 {[%clk 0:01:20.1]} 26. Qd4+ {[%clk 0:01:23]} 26...
Qxd4 {[%clk 0:01:20]} 27. cxd4 {[%clk 0:01:22.8]} 27... Bd3 {[%clk 0:00:51.5]}
28. e5 {[%clk 0:01:20.7]} 28... Rb4 {[%clk 0:00:51.3]} 29. Rd2 {[%clk
0:01:13.7]} 29... Be4 {[%clk 0:00:46.3]} 30. Re1 {[%clk 0:01:12.1]} 30... Bf5
{[%clk 0:00:33.8]} 31. e6 {[%clk 0:01:11.3]} 31... fxe6 {[%clk 0:00:29]} 32.
dxe6 {[%clk 0:01:10.8]} 32... Bg6 {[%clk 0:00:29.6]} 33. e7 {[%clk 0:01:03.6]}
33... Be8 {[%clk 0:00:29.8]} 34. d5 {[%clk 0:00:59.6]} 34... Kf7 {[%clk
0:00:17.1]} 35. Rc2 {[%clk 0:00:49.6]} 35... Bxc6 {[%clk 0:00:11.3]} 36. Rxc6
{[%clk 0:00:48.8]} 36... Re8 {[%clk 0:00:06.8]} 37. Rxc7 {[%clk 0:00:47.4]}
37... Rd4 {[%clk 0:00:06.2]} 38. Rd7 {[%clk 0:00:47.4]} 38... g4 {[%clk
0:00:02.1]} 39. d6 {[%clk 0:00:46.6]} 39... g3 {[%clk 0:00:02.5]} 40. hxg3
{[%clk 0:00:43.9]} 40... fxg3 {[%clk 0:00:03.4]} 41. Rd8 {[%clk 0:00:42.7]}
41... a5 {[%clk 0:00:01.8]} 42. Rf1+ {[%clk 0:00:41.6]} 1-0

[Event "Late-Titled-Tuesday-Blitz-March-05-2024"]
[Site "Chess.com"]
[Date "2024.03.05"]
[Round "9"]
[White "Zq1"]
[Black "rikchessmx"]
[Result "1-0"]
[WhiteElo "2573"]
[BlackElo "2306"]
[TimeControl "180+1"]
[EndTime "15:40:34 PST"]
[Termination "Zq1 won by resignation"]

1. d4 {[%clk 0:03:00.9]} 1... Nf6 {[%clk 0:02:59.6]} 2. c4 {[%clk 0:03:00.7]}
2... e6 {[%clk 0:02:58.7]} 3. g3 {[%clk 0:02:59.8]} 3... d5 {[%clk 0:02:57.8]}
4. Bg2 {[%clk 0:02:59.6]} 4... c6 {[%clk 0:02:57.7]} 5. Nd2 {[%clk 0:02:56.1]}
5... Nbd7 {[%clk 0:02:57]} 6. Ngf3 {[%clk 0:02:55.3]} 6... Bd6 {[%clk
0:02:56.6]} 7. O-O {[%clk 0:02:53.8]} 7... O-O {[%clk 0:02:56.3]} 8. Qc2 {[%clk
0:02:54.3]} 8... Qe7 {[%clk 0:02:56.1]} 9. b3 {[%clk 0:02:53.2]} 9... e5 {[%clk
0:02:53.4]} 10. cxd5 {[%clk 0:02:48.9]} 10... Nxd5 {[%clk 0:02:52.7]} 11. Nc4
{[%clk 0:02:44.8]} 11... exd4 {[%clk 0:02:44.9]} 12. Nxd6 {[%clk 0:02:31.6]}
12... Qxd6 {[%clk 0:02:44.4]} 13. Nxd4 {[%clk 0:02:31.6]} 13... N7f6 {[%clk
0:02:38.8]} 14. Bb2 {[%clk 0:02:28.7]} 14... Bg4 {[%clk 0:02:33.4]} 15. h3
{[%clk 0:02:25]} 15... Bh5 {[%clk 0:02:32.6]} 16. Nf5 {[%clk 0:02:21.3]} 16...
Qd7 {[%clk 0:02:31.7]} 17. Rad1 {[%clk 0:02:13.5]} 17... Bg6 {[%clk 0:02:30.6]}
18. e4 {[%clk 0:02:12.2]} 18... Qe6 {[%clk 0:02:26.3]} 19. exd5 {[%clk
0:01:58.3]} 19... Qxf5 {[%clk 0:02:24.6]} 20. Qxf5 {[%clk 0:01:56.3]} 20... Bxf5
{[%clk 0:02:24.3]} 21. dxc6 {[%clk 0:01:53.7]} 21... bxc6 {[%clk 0:02:23]} 22.
g4 {[%clk 0:01:51.3]} 22... Be6 {[%clk 0:02:20.8]} 23. Bxf6 {[%clk 0:01:46.6]}
23... gxf6 {[%clk 0:02:20.3]} 24. Rd6 {[%clk 0:01:40.6]} 24... a5 {[%clk
0:02:12]} 25. Bxc6 {[%clk 0:01:30]} 25... Ra6 {[%clk 0:02:11.6]} 26. Rfd1 {[%clk
0:01:29.5]} 26... Kg7 {[%clk 0:02:07.2]} 27. Bb5 {[%clk 0:01:20.2]} 27... Rxd6
{[%clk 0:02:06.6]} 28. Rxd6 {[%clk 0:01:19.1]} 28... Rc8 {[%clk 0:02:05.1]} 29.
Rd2 {[%clk 0:01:12.7]} 29... Rc5 {[%clk 0:02:01.3]} 30. Bc4 {[%clk 0:01:05.3]}
30... h5 {[%clk 0:01:56.5]} 31. Rd4 {[%clk 0:00:55.9]} 31... hxg4 {[%clk
0:01:52]} 32. hxg4 {[%clk 0:00:54.4]} 32... Kg6 {[%clk 0:01:46.4]} 33. Kg2
{[%clk 0:00:52.9]} 33... f5 {[%clk 0:01:45.6]} 34. Kg3 {[%clk 0:00:43.6]} 34...
fxg4 {[%clk 0:01:41.2]} 35. Bxe6 {[%clk 0:00:41.6]} 35... fxe6 {[%clk 0:01:41]}
36. Rxg4+ {[%clk 0:00:40]} 36... Kf6 {[%clk 0:01:41.4]} 37. Ra4 {[%clk
0:00:28.5]} 37... Kf5 {[%clk 0:01:36.4]} 38. Kf3 {[%clk 0:00:27.6]} 38... e5
{[%clk 0:01:31.7]} 39. Ke3 {[%clk 0:00:26.6]} 39... Rd5 {[%clk 0:01:27.8]} 40.
Rc4 {[%clk 0:00:23.9]} 40... Rb5 {[%clk 0:01:22.4]} 41. Rc8 {[%clk 0:00:21.9]}
41... Rb4 {[%clk 0:01:17.7]} 42. Rf8+ {[%clk 0:00:19.8]} 42... Ke6 {[%clk
0:01:17.1]} 43. Ra8 {[%clk 0:00:20.1]} 43... Rb5 {[%clk 0:01:16.6]} 44. Ra6+
{[%clk 0:00:19.3]} 44... Kd5 {[%clk 0:01:13.1]} 45. f3 {[%clk 0:00:19.1]} 45...
Kc5 {[%clk 0:01:11.5]} 46. Ke4 {[%clk 0:00:17.2]} 46... Kb4 {[%clk 0:01:11.7]}
47. Re6 {[%clk 0:00:16.5]} 47... Ka3 {[%clk 0:01:10.2]} 48. Rxe5 {[%clk
0:00:15.2]} 48... Rb4+ {[%clk 0:01:06]} 49. Kd3 {[%clk 0:00:13.5]} 49... a4
{[%clk 0:01:06]} 50. Ra5 {[%clk 0:00:12.4]} 50... Kxa2 {[%clk 0:01:05.5]} 51.
Rxa4+ {[%clk 0:00:12.1]} 51... Kxb3 {[%clk 0:01:05.4]} 52. Rxb4+ {[%clk
0:00:11.9]} 52... Kxb4 {[%clk 0:01:05.7]} 53. Kd4 {[%clk 0:00:12.5]} 53... Kb5
{[%clk 0:01:06]} 54. Kd5 {[%clk 0:00:13]} 54... Kb6 {[%clk 0:01:05.7]} 55. Kd6
{[%clk 0:00:13.3]} 55... Kb7 {[%clk 0:01:05.8]} 56. Kd7 {[%clk 0:00:13.6]} 56...
Kb6 {[%clk 0:01:05.6]} 57. f4 {[%clk 0:00:13.9]} 57... Kc5 {[%clk 0:01:06.1]}
58. Ke6 {[%clk 0:00:13.4]} 58... Kc6 {[%clk 0:01:05.9]} 59. f5 {[%clk
0:00:13.2]} 59... Kc7 {[%clk 0:01:06.2]} 60. Ke7 {[%clk 0:00:13.6]} 60... Kc6
{[%clk 0:01:06]} 61. f6 {[%clk 0:00:13.9]} 61... Kd5 {[%clk 0:01:06.9]} 62. f7
{[%clk 0:00:14.2]} 1-0

[Event "Late-Titled-Tuesday-Blitz-March-05-2024"]
[Site "Chess.com"]
[Date "2024.03.05"]
[Round "9"]
[White "PepeCuenca"]
[Black "masterofpuppets2"]
[Result "1-0"]
[WhiteElo "2685"]
[BlackElo "2489"]
[TimeControl "180+1"]
[EndTime "15:40:40 PST"]
[Termination "PepeCuenca won on time"]

1. d4 {[%clk 0:03:00.1]} 1... d5 {[%clk 0:03:00.3]} 2. Bf4 {[%clk 0:02:59.5]}
2... c5 {[%clk 0:03:00.2]} 3. e3 {[%clk 0:02:59.5]} 3... Nc6 {[%clk 0:03:00.6]}
4. Nf3 {[%clk 0:02:59.4]} 4... Nf6 {[%clk 0:02:59.8]} 5. Nbd2 {[%clk 0:02:55]}
5... Nh5 {[%clk 0:02:59.9]} 6. dxc5 {[%clk 0:02:35.1]} 6... Nxf4 {[%clk
0:02:59.3]} 7. exf4 {[%clk 0:02:36]} 7... e6 {[%clk 0:02:59.2]} 8. Nb3 {[%clk
0:02:21.1]} 8... Bxc5 {[%clk 0:02:55.9]} 9. Nxc5 {[%clk 0:02:19]} 9... Qa5+
{[%clk 0:02:56.5]} 10. Qd2 {[%clk 0:02:18.9]} 10... Qxc5 {[%clk 0:02:56.5]} 11.
Bd3 {[%clk 0:02:18.8]} 11... O-O {[%clk 0:02:55.3]} 12. O-O {[%clk 0:02:06]}
12... h6 {[%clk 0:02:38.6]} 13. c3 {[%clk 0:02:03]} 13... a5 {[%clk 0:02:32.2]}
14. a4 {[%clk 0:01:57.2]} 14... b6 {[%clk 0:02:29.9]} 15. Bb5 {[%clk 0:01:41.5]}
15... Ba6 {[%clk 0:02:28.6]} 16. Bxc6 {[%clk 0:01:36.8]} 16... Qxc6 {[%clk
0:02:28.5]} 17. Nd4 {[%clk 0:01:33.2]} 17... Qc7 {[%clk 0:02:19]} 18. Rfe1
{[%clk 0:01:31.7]} 18... Rfe8 {[%clk 0:02:10]} 19. Re5 {[%clk 0:01:26.7]} 19...
Qc5 {[%clk 0:01:58.7]} 20. Rae1 {[%clk 0:01:24.5]} 20... Kf8 {[%clk 0:01:49.4]}
21. Qe3 {[%clk 0:01:17.9]} 21... g6 {[%clk 0:01:14.3]} 22. f5 {[%clk 0:01:12.6]}
22... Kg7 {[%clk 0:01:00]} 23. fxe6 {[%clk 0:00:46.7]} 23... f6 {[%clk
0:00:58.2]} 24. e7 {[%clk 0:00:46.9]} 24... Bc8 {[%clk 0:00:33.4]} 25. Re6
{[%clk 0:00:45.3]} 25... Ra7 {[%clk 0:00:28.6]} 26. Qf4 {[%clk 0:00:37.2]} 26...
f5 {[%clk 0:00:13.7]} 27. Qg3 {[%clk 0:00:23.3]} 27... Bxe6 {[%clk 0:00:05.2]}
28. Nxe6+ {[%clk 0:00:21.6]} 28... Kf7 {[%clk 0:00:06.1]} 29. Nxc5 {[%clk
0:00:21.8]} 29... bxc5 {[%clk 0:00:07]} 30. Qd6 {[%clk 0:00:21.3]} 30... Raxe7
{[%clk 0:00:05.7]} 31. Rxe7+ {[%clk 0:00:20.9]} 31... Rxe7 {[%clk 0:00:05.8]}
32. Qxd5+ {[%clk 0:00:21.6]} 32... Kf6 {[%clk 0:00:06.7]} 33. h4 {[%clk
0:00:20.6]} 33... Re5 {[%clk 0:00:04.5]} 34. Qd8+ {[%clk 0:00:19.9]} 34... Ke6
{[%clk 0:00:04.4]} 35. Qxa5 {[%clk 0:00:19.3]} 1-0

[Event "Late-Titled-Tuesday-Blitz-March-05-2024"]
[Site "Chess.com"]
[Date "2024.03.05"]
[Round "9"]
[White "NovakRatko"]
[Black "C_K_G"]
[Result "0-1"]
[WhiteElo "2376"]
[BlackElo "2193"]
[TimeControl "180+1"]
[EndTime "15:40:40 PST"]
[Termination "C_K_G won by resignation"]

1. d4 {[%clk 0:03:00.9]} 1... d5 {[%clk 0:02:52.4]} 2. c4 {[%clk 0:03:01]} 2...
e6 {[%clk 0:02:52.2]} 3. cxd5 {[%clk 0:03:00.9]} 3... exd5 {[%clk 0:02:51.8]} 4.
Nc3 {[%clk 0:03:01.8]} 4... Nf6 {[%clk 0:02:51.4]} 5. Bg5 {[%clk 0:02:59.6]}
5... Be7 {[%clk 0:02:51.7]} 6. f3 {[%clk 0:02:59.2]} 6... O-O {[%clk 0:02:51.3]}
7. Qd3 {[%clk 0:02:53.1]} 7... h6 {[%clk 0:02:50.2]} 8. Bh4 {[%clk 0:02:52.8]}
8... b6 {[%clk 0:02:37.2]} 9. Bf2 {[%clk 0:02:35.6]} 9... c5 {[%clk 0:02:34.2]}
10. dxc5 {[%clk 0:02:31.1]} 10... bxc5 {[%clk 0:02:35.1]} 11. Rd1 {[%clk
0:02:23.6]} 11... d4 {[%clk 0:02:33.8]} 12. Nb1 {[%clk 0:02:21.2]} 12... Ba6
{[%clk 0:02:24.7]} 13. Qf5 {[%clk 0:02:20]} 13... Nbd7 {[%clk 0:02:12.3]} 14. a3
{[%clk 0:02:09.5]} 14... g6 {[%clk 0:01:53.1]} 15. Qc2 {[%clk 0:02:08.5]} 15...
Ne5 {[%clk 0:01:49.6]} 16. e4 {[%clk 0:01:52.6]} 16... Bxf1 {[%clk 0:01:39.6]}
17. Kxf1 {[%clk 0:01:52.2]} 17... Qb6 {[%clk 0:01:32]} 18. b4 {[%clk 0:01:37]}
18... Qa6+ {[%clk 0:01:31.6]} 19. Qe2 {[%clk 0:01:29.4]} 19... d3 {[%clk
0:01:30]} 20. Qd2 {[%clk 0:01:29.3]} 20... c4 {[%clk 0:01:29.7]} 21. h3 {[%clk
0:01:20.9]} 21... Kg7 {[%clk 0:01:24.3]} 22. Bd4 {[%clk 0:01:19.4]} 22... Bd6
{[%clk 0:01:21.3]} 23. Qc3 {[%clk 0:01:18.8]} 23... Nfd7 {[%clk 0:01:20.1]} 24.
f4 {[%clk 0:01:17.4]} 24... Rfe8 {[%clk 0:01:14.7]} 25. Nf3 {[%clk 0:01:16.1]}
25... f6 {[%clk 0:01:13.3]} 26. fxe5 {[%clk 0:01:15.8]} 26... fxe5 {[%clk
0:01:13.5]} 27. Be3 {[%clk 0:01:08.9]} 27... Rf8 {[%clk 0:01:08]} 28. Qxc4
{[%clk 0:01:07.3]} 28... Qxc4 {[%clk 0:01:06.1]} 29. Nd2 {[%clk 0:01:06.7]}
29... Qc2 {[%clk 0:01:04.1]} 30. Kf2 {[%clk 0:01:05.9]} 30... Nf6 {[%clk
0:01:00.8]} 31. Kg3 {[%clk 0:01:01.4]} 31... Nh5+ {[%clk 0:00:56.7]} 32. Kh2
{[%clk 0:00:59.9]} 32... Nf4 {[%clk 0:00:56.2]} 33. Rc1 {[%clk 0:00:59.6]} 33...
Qb2 {[%clk 0:00:55.6]} 34. Rc6 {[%clk 0:00:59.2]} 34... Rf6 {[%clk 0:00:53.9]}
35. Bxf4 {[%clk 0:00:31.4]} 35... exf4 {[%clk 0:00:52.3]} 36. Nc4 {[%clk
0:00:31.8]} 36... Qf2 {[%clk 0:00:48.6]} 37. e5 {[%clk 0:00:17.4]} 37... Qg3+
{[%clk 0:00:46.6]} 38. Kg1 {[%clk 0:00:17.3]} 38... Bxe5 {[%clk 0:00:46.6]} 39.
Ncxe5 {[%clk 0:00:15.8]} 39... Rxc6 {[%clk 0:00:40.6]} 40. Nxc6 {[%clk 0:00:16]}
40... Re8 {[%clk 0:00:37.4]} 41. Nce5 {[%clk 0:00:13.8]} 41... d2 {[%clk
0:00:36]} 0-1

[Event "Late-Titled-Tuesday-Blitz-March-05-2024"]
[Site "Chess.com"]
[Date "2024.03.05"]
[Round "9"]
[White "KorolDimitriy75"]
[Black "annacramling"]
[Result "1-0"]
[WhiteElo "2398"]
[BlackElo "2094"]
[TimeControl "180+1"]
[EndTime "15:40:44 PST"]
[Termination "KorolDimitriy75 won on time"]

1. d4 {[%clk 0:03:00.9]} 1... d5 {[%clk 0:02:45.7]} 2. c4 {[%clk 0:03:01.3]}
2... e6 {[%clk 0:02:40]} 3. Nc3 {[%clk 0:03:01.7]} 3... Nf6 {[%clk 0:02:35]} 4.
Bg5 {[%clk 0:03:01.6]} 4... Be7 {[%clk 0:02:34.3]} 5. cxd5 {[%clk 0:03:01.8]}
5... exd5 {[%clk 0:02:34.7]} 6. e3 {[%clk 0:03:02.1]} 6... O-O {[%clk
0:02:18.9]} 7. Bd3 {[%clk 0:03:02]} 7... h6 {[%clk 0:02:19.2]} 8. Bh4 {[%clk
0:03:00.3]} 8... Be6 {[%clk 0:02:13.4]} 9. Qc2 {[%clk 0:02:56.4]} 9... Nbd7
{[%clk 0:02:13.7]} 10. Nge2 {[%clk 0:02:56]} 10... c5 {[%clk 0:02:13.7]} 11. O-O
{[%clk 0:02:53.2]} 11... Rc8 {[%clk 0:02:10.4]} 12. Rad1 {[%clk 0:02:49.6]}
12... Re8 {[%clk 0:01:49.4]} 13. f3 {[%clk 0:02:29.4]} 13... a6 {[%clk
0:01:15.8]} 14. Bf2 {[%clk 0:02:03.6]} 14... c4 {[%clk 0:01:10.4]} 15. Bf5
{[%clk 0:02:03.1]} 15... b5 {[%clk 0:01:08.9]} 16. a3 {[%clk 0:01:48.6]} 16...
Nf8 {[%clk 0:01:08.6]} 17. h3 {[%clk 0:01:25.9]} 17... Qd7 {[%clk 0:01:06.2]}
18. Bxe6 {[%clk 0:01:24.5]} 18... Nxe6 {[%clk 0:00:53.6]} 19. e4 {[%clk
0:01:25.4]} 19... dxe4 {[%clk 0:00:43.6]} 20. fxe4 {[%clk 0:01:26.3]} 20... a5
{[%clk 0:00:30.6]} 21. e5 {[%clk 0:01:13.9]} 21... Nd5 {[%clk 0:00:30]} 22. Nxd5
{[%clk 0:01:11.2]} 22... Qxd5 {[%clk 0:00:30.9]} 23. Nc3 {[%clk 0:01:11.3]}
23... Qb7 {[%clk 0:00:29.3]} 24. d5 {[%clk 0:00:53.4]} 24... Nc5 {[%clk
0:00:24.7]} 25. Qf5 {[%clk 0:00:48.6]} 25... Bf8 {[%clk 0:00:17.7]} 26. d6
{[%clk 0:00:38.4]} 26... g6 {[%clk 0:00:12.8]} 27. Qg4 {[%clk 0:00:31.4]} 27...
h5 {[%clk 0:00:06.8]} 28. Qg3 {[%clk 0:00:22.6]} 28... Qd7 {[%clk 0:00:03.1]}
29. Nd5 {[%clk 0:00:21.4]} 29... Kg7 {[%clk 0:00:01.7]} 30. Nb6 {[%clk
0:00:20.6]} 30... Qe6 {[%clk 0:00:01.6]} 31. Nxc8 {[%clk 0:00:20.3]} 31... Rxc8
{[%clk 0:00:02.5]} 32. Qf3 {[%clk 0:00:19.5]} 32... Nd7 {[%clk 0:00:02.3]} 33.
Bd4 {[%clk 0:00:19.4]} 33... Kh7 {[%clk 0:00:01.9]} 34. Qxf7+ {[%clk 0:00:18.7]}
34... Qxf7 {[%clk 0:00:01.5]} 35. Rxf7+ {[%clk 0:00:19.6]} 35... Kg8 {[%clk
0:00:01.9]} 36. Rxd7 {[%clk 0:00:20.1]} 36... c3 {[%clk 0:00:01.3]} 37. bxc3
{[%clk 0:00:19.7]} 1-0

[Event "Late-Titled-Tuesday-Blitz-March-05-2024"]
[Site "Chess.com"]
[Date "2024.03.05"]
[Round "9"]
[White "Jospem"]
[Black "Hikaru"]
[Result "0-1"]
[WhiteElo "3100"]
[BlackElo "3271"]
[TimeControl "180+1"]
[EndTime "15:40:57 PST"]
[Termination "Hikaru won by resignation"]

1. e4 {[%clk 0:03:00.9]} 1... d5 {[%clk 0:03:00.1]} 2. exd5 {[%clk 0:03:00.6]}
2... Qxd5 {[%clk 0:03:01]} 3. Nc3 {[%clk 0:03:00.6]} 3... Qa5 {[%clk 0:03:01.2]}
4. Bc4 {[%clk 0:02:56.2]} 4... Bf5 {[%clk 0:03:00.6]} 5. d4 {[%clk 0:02:52.6]}
5... c6 {[%clk 0:03:00.1]} 6. Nf3 {[%clk 0:02:48.8]} 6... e6 {[%clk 0:03:00.4]}
7. Bd2 {[%clk 0:02:48.9]} 7... Qc7 {[%clk 0:02:59.8]} 8. Nh4 {[%clk 0:02:45.6]}
8... Bg6 {[%clk 0:02:59.5]} 9. O-O {[%clk 0:02:37.2]} 9... Bd6 {[%clk
0:02:52.9]} 10. h3 {[%clk 0:02:33.7]} 10... Bh2+ {[%clk 0:02:48.1]} 11. Kh1
{[%clk 0:02:33.5]} 11... Bf4 {[%clk 0:02:49]} 12. Ne2 {[%clk 0:02:22.3]} 12...
Bxd2 {[%clk 0:02:48.3]} 13. Qxd2 {[%clk 0:02:23.2]} 13... Nd7 {[%clk 0:02:45.1]}
14. c3 {[%clk 0:02:12.5]} 14... Ngf6 {[%clk 0:02:39.2]} 15. Qe3 {[%clk 0:02:10]}
15... O-O {[%clk 0:02:38.4]} 16. Nxg6 {[%clk 0:02:06]} 16... hxg6 {[%clk
0:02:39.3]} 17. Rad1 {[%clk 0:02:04.8]} 17... c5 {[%clk 0:02:38.2]} 18. dxc5
{[%clk 0:02:01.2]} 18... Nxc5 {[%clk 0:02:39.1]} 19. Bd3 {[%clk 0:01:50.4]}
19... Rad8 {[%clk 0:02:25.9]} 20. Bc2 {[%clk 0:01:50.5]} 20... Nd5 {[%clk
0:02:26.1]} 21. Qf3 {[%clk 0:01:48.4]} 21... Rd6 {[%clk 0:02:24.7]} 22. Rd4
{[%clk 0:01:44.1]} 22... Nf6 {[%clk 0:02:20]} 23. Rfd1 {[%clk 0:01:43.4]} 23...
Rxd4 {[%clk 0:02:20.3]} 24. Rxd4 {[%clk 0:01:42.3]} 24... b5 {[%clk 0:02:11.1]}
25. a3 {[%clk 0:01:36.1]} 25... Nd5 {[%clk 0:02:05.8]} 26. Rd1 {[%clk
0:01:25.9]} 26... a6 {[%clk 0:02:04.4]} 27. Nd4 {[%clk 0:01:23.2]} 27... Nb6
{[%clk 0:02:03.8]} 28. Qe2 {[%clk 0:01:18.3]} 28... Rd8 {[%clk 0:01:53.6]} 29.
Bb1 {[%clk 0:00:55.3]} 29... Nca4 {[%clk 0:01:36]} 30. Re1 {[%clk 0:00:54.4]}
30... Rd6 {[%clk 0:01:33.8]} 31. Ba2 {[%clk 0:00:49.6]} 31... Nc4 {[%clk
0:01:31.5]} 32. Bxc4 {[%clk 0:00:49.2]} 32... bxc4 {[%clk 0:01:29.9]} 33. Nf3
{[%clk 0:00:38.5]} 33... Rb6 {[%clk 0:01:17.5]} 34. Ne5 {[%clk 0:00:38.6]} 34...
Rxb2 {[%clk 0:01:15.3]} 35. Qf3 {[%clk 0:00:38.8]} 35... Nb6 {[%clk 0:01:08.8]}
36. h4 {[%clk 0:00:15.3]} 36... Nd5 {[%clk 0:00:56.8]} 37. Qe4 {[%clk
0:00:09.9]} 37... Rxf2 {[%clk 0:00:47.7]} 38. Kg1 {[%clk 0:00:05.4]} 38... Rf4
{[%clk 0:00:46]} 39. Qe2 {[%clk 0:00:04.3]} 39... Qc5+ {[%clk 0:00:43.8]} 40.
Kh2 {[%clk 0:00:04.3]} 40... Nxc3 {[%clk 0:00:34.7]} 41. Qd2 {[%clk 0:00:03.6]}
41... Rxh4+ {[%clk 0:00:21.9]} 42. Kg3 {[%clk 0:00:04.1]} 42... Qd4 {[%clk
0:00:22.7]} 43. Qg5 {[%clk 0:00:01.7]} 43... Ne4+ {[%clk 0:00:22.8]} 44. Rxe4
{[%clk 0:00:01.4]} 44... Rxe4 {[%clk 0:00:23.7]} 45. Nf3 {[%clk 0:00:01.2]}
45... Qd6+ {[%clk 0:00:23.5]} 0-1